[Event "Live Chess"]
[Site "Chess.com"]
[Date "2023.05.21"]
[Round "-"]
[White "Cimon"]
[Black "chessfiction"]
[Result "0-1"]
[WhiteElo "1844"]
[BlackElo "2293"]
[TimeControl "300"]
[EndTime "8:21:18 PDT"]
[Termination "chessfiction won by resignation"]

1. Nf3 {[%clk 0:04:58.9]} 1... e5 {[%clk 0:04:58.6]} 2. Nxe5 {[%clk 0:04:56.3]}
2... Nc6 {[%clk 0:04:57.5]} 3. Nxc6 {[%clk 0:04:54.8]} 3... dxc6 {[%clk
0:04:57.4]} 4. d4 {[%clk 0:04:51]} 4... Bg4 {[%clk 0:04:55.5]} 5. Nc3 {[%clk
0:04:43.5]} 5... Bb4 {[%clk 0:04:53.4]} 6. Bf4 {[%clk 0:04:40.1]} 6... Qe7
{[%clk 0:04:52]} 7. f3 {[%clk 0:04:34.7]} 7... Bh5 {[%clk 0:04:49.9]} 8. e4
{[%clk 0:04:31.6]} 8... O-O-O {[%clk 0:04:49]} 9. Be3 {[%clk 0:04:25.5]} 9...
Nf6 {[%clk 0:04:47]} 10. Bd3 {[%clk 0:04:21.5]} 10... c5 {[%clk 0:04:44.5]} 11.
d5 {[%clk 0:04:13.6]} 11... Nxd5 {[%clk 0:04:42]} 12. Bd2 {[%clk 0:04:09.3]}
12... Bxc3 {[%clk 0:04:36.7]} 13. bxc3 {[%clk 0:04:01.6]} 13... c4 {[%clk
0:04:35.2]} 14. Bxc4 {[%clk 0:03:47.6]} 14... Ne3 {[%clk 0:04:33.5]} 15. Qe2
{[%clk 0:03:41.2]} 15... Nxc2+ {[%clk 0:04:31.3]} 16. Kf2 {[%clk 0:03:36.5]}
16... Nxa1 {[%clk 0:04:25.3]} 17. Rxa1 {[%clk 0:03:34.7]} 17... Qc5+ {[%clk
0:04:23.7]} 18. Be3 {[%clk 0:03:32.7]} 18... Qa5 {[%clk 0:04:18.9]} 19. Qb2
{[%clk 0:03:23.2]} 19... Rd6 {[%clk 0:04:16.4]} 20. Rb1 {[%clk 0:03:20.9]} 20...
b6 {[%clk 0:04:07.8]} 21. Bf4 {[%clk 0:03:15.5]} 21... Qc5+ {[%clk 0:04:02.8]}
22. Kg3 {[%clk 0:03:07.6]} 22... Rg6+ {[%clk 0:04:00.6]} 23. Kh3 {[%clk
0:02:59.5]} 23... Qxc4 {[%clk 0:03:57]} 24. Qa3 {[%clk 0:02:54]} 24... a5 {[%clk
0:03:53.5]} 25. Qe7 {[%clk 0:01:59.3]} 25... Qe6+ {[%clk 0:03:50.4]} 0-1

[Event "Live Chess"]
[Site "Chess.com"]
[Date "2023.05.21"]
[Round "-"]
[White "Tiltador"]
[Black "JohanKjeldahl"]
[Result "0-1"]
[WhiteElo "907"]
[BlackElo "1886"]
[TimeControl "300"]
[EndTime "8:21:23 PDT"]
[Termination "JohanKjeldahl won by resignation"]

1. e4 {[%clk 0:04:58]} 1... c5 {[%clk 0:04:58.1]} 2. Nf3 {[%clk 0:04:56.9]} 2...
Nc6 {[%clk 0:04:56.5]} 3. Bb5 {[%clk 0:04:55.3]} 3... e6 {[%clk 0:04:52.9]} 4.
Bxc6 {[%clk 0:04:54.3]} 4... dxc6 {[%clk 0:04:51.6]} 5. d3 {[%clk 0:04:53.3]}
5... Nf6 {[%clk 0:04:49.6]} 6. O-O {[%clk 0:04:52.2]} 6... Be7 {[%clk
0:04:48.3]} 7. Nc3 {[%clk 0:04:49]} 7... O-O {[%clk 0:04:46.7]} 8. Bg5 {[%clk
0:04:46.6]} 8... h6 {[%clk 0:04:43.8]} 9. Bxf6 {[%clk 0:04:45.6]} 9... Bxf6
{[%clk 0:04:42.4]} 10. e5 {[%clk 0:04:43.7]} 10... Be7 {[%clk 0:04:40.9]} 11.
Ne4 {[%clk 0:04:37.8]} 11... b6 {[%clk 0:04:39.4]} 12. Nd6 {[%clk 0:04:34.3]}
12... Bxd6 {[%clk 0:04:37.9]} 13. exd6 {[%clk 0:04:32.6]} 13... Qxd6 {[%clk
0:04:37]} 14. d4 {[%clk 0:04:27.7]} 14... cxd4 {[%clk 0:04:34.8]} 15. Qxd4
{[%clk 0:04:25.1]} 15... Qxd4 {[%clk 0:04:33.8]} 16. Nxd4 {[%clk 0:04:23.7]}
16... c5 {[%clk 0:04:32.7]} 17. Nc6 {[%clk 0:04:21.3]} 17... Bb7 {[%clk
0:04:31.5]} 18. Ne5 {[%clk 0:04:14]} 18... Rad8 {[%clk 0:04:26.8]} 19. f4 {[%clk
0:04:11.2]} 19... Rd2 {[%clk 0:04:23.9]} 20. Rac1 {[%clk 0:04:06.9]} 20... Rxg2+
{[%clk 0:04:19.3]} 21. Kh1 {[%clk 0:04:03.3]} 21... Rxc2+ {[%clk 0:04:15.1]} 22.
Kg1 {[%clk 0:04:00.2]} 22... Rg2+ {[%clk 0:04:12.3]} 23. Kh1 {[%clk 0:03:57.6]}
23... Rxb2+ {[%clk 0:04:10.7]} 24. Kg1 {[%clk 0:03:54.6]} 24... Rg2+ {[%clk
0:04:09.4]} 25. Kh1 {[%clk 0:03:53.2]} 25... Rxa2+ {[%clk 0:04:06.8]} 26. Kg1
{[%clk 0:03:51.6]} 26... Rg2+ {[%clk 0:04:00.5]} 27. Kh1 {[%clk 0:03:48.9]}
27... Rc2+ {[%clk 0:03:56.9]} 28. Kg1 {[%clk 0:03:46.1]} 28... Rxc1 {[%clk
0:03:56]} 29. Rxc1 {[%clk 0:03:44.5]} 29... Rd8 {[%clk 0:03:50.8]} 30. h4 {[%clk
0:03:35.8]} 30... Rd4 {[%clk 0:03:46.4]} 31. Rf1 {[%clk 0:03:31.3]} 31... f6
{[%clk 0:03:41.8]} 32. Ng6 {[%clk 0:03:26.9]} 32... Kf7 {[%clk 0:03:40.3]} 33.
h5 {[%clk 0:03:23.8]} 33... Be4 {[%clk 0:03:36.3]} 34. Nh8+ {[%clk 0:02:48.2]}
34... Ke7 {[%clk 0:03:33.3]} 35. Ng6+ {[%clk 0:02:45.8]} 35... Bxg6 {[%clk
0:03:31.1]} 36. hxg6 {[%clk 0:02:44.4]} 36... Kd6 {[%clk 0:03:29]} 37. f5 {[%clk
0:02:40.8]} 37... e5 {[%clk 0:03:27]} 38. Kg2 {[%clk 0:02:35.9]} 38... e4 {[%clk
0:03:23]} 39. Re1 {[%clk 0:02:33]} 39... Ke5 {[%clk 0:03:21.6]} 40. Rf1 {[%clk
0:02:29.2]} 40... Rd3 {[%clk 0:03:16.6]} 41. Kg1 {[%clk 0:02:20.3]} 41... e3
{[%clk 0:03:14.6]} 42. Kg2 {[%clk 0:02:17.4]} 42... Ke4 {[%clk 0:03:12.6]} 43.
Kg3 {[%clk 0:02:14.7]} 43... e2+ {[%clk 0:03:11.2]} 44. Kh4 {[%clk 0:02:10.3]}
44... exf1=Q {[%clk 0:03:04.4]} 0-1

[Event "Live Chess"]
[Site "Chess.com"]
[Date "2023.05.21"]
[Round "-"]
[White "gmnorfolk"]
[Black "garyjc"]
[Result "1-0"]
[WhiteElo "2114"]
[BlackElo "1080"]
[TimeControl "300"]
[EndTime "8:21:26 PDT"]
[Termination "gmnorfolk won by resignation"]

1. d4 {[%clk 0:04:58.5]} 1... d5 {[%clk 0:04:57.2]} 2. Nc3 {[%clk 0:04:56.8]}
2... Nf6 {[%clk 0:04:50.6]} 3. Bf4 {[%clk 0:04:56.3]} 3... Bf5 {[%clk
0:04:43.6]} 4. e3 {[%clk 0:04:54.3]} 4... Nc6 {[%clk 0:04:40.8]} 5. Nb5 {[%clk
0:04:50.8]} 5... Rc8 {[%clk 0:04:24.9]} 6. c4 {[%clk 0:04:46.9]} 6... e6 {[%clk
0:04:17.8]} 7. a3 {[%clk 0:04:41.8]} 7... Bd6 {[%clk 0:03:59.4]} 8. Nxd6+ {[%clk
0:04:33.1]} 8... cxd6 {[%clk 0:03:56.1]} 9. h3 {[%clk 0:04:29.6]} 9... O-O
{[%clk 0:03:54.3]} 10. Nf3 {[%clk 0:04:28.1]} 10... Ne4 {[%clk 0:03:52.9]} 11.
Be2 {[%clk 0:04:22.4]} 11... Qa5+ {[%clk 0:03:44.6]} 12. b4 {[%clk 0:04:19.7]}
12... Qc7 {[%clk 0:03:33.2]} 13. c5 {[%clk 0:04:18.4]} 13... Nc3 {[%clk
0:03:13.8]} 14. Qd2 {[%clk 0:04:11.9]} 14... Ne4 {[%clk 0:03:09.2]} 15. Qc1
{[%clk 0:04:05.8]} 15... Qd8 {[%clk 0:02:49.3]} 16. O-O {[%clk 0:03:58.8]} 16...
Re8 {[%clk 0:02:41.4]} 17. Qb2 {[%clk 0:03:55.9]} 17... b6 {[%clk 0:02:25.9]}
18. b5 {[%clk 0:03:52.8]} 18... Na5 {[%clk 0:02:22]} 19. c6 {[%clk 0:03:52]}
19... Nc4 {[%clk 0:02:18.8]} 20. Bxc4 {[%clk 0:03:50.3]} 20... dxc4 {[%clk
0:02:17.6]} 21. Rac1 {[%clk 0:03:35.7]} 21... c3 {[%clk 0:02:05.5]} 22. Rxc3
{[%clk 0:03:33.8]} 22... Nxc3 {[%clk 0:02:04.3]} 23. Qxc3 {[%clk 0:03:33.7]}
23... Be4 {[%clk 0:01:40.3]} 24. Nd2 {[%clk 0:03:29.4]} 24... Bg6 {[%clk
0:01:34.3]} 25. Nc4 {[%clk 0:03:24.3]} 25... d5 {[%clk 0:01:31.1]} 26. Nd6
{[%clk 0:03:21.3]} 26... Qe7 {[%clk 0:00:53.3]} 27. Nxc8 {[%clk 0:03:18.9]}
27... Rxc8 {[%clk 0:00:52]} 28. Rc1 {[%clk 0:03:08.4]} 28... f6 {[%clk
0:00:49.1]} 29. c7 {[%clk 0:03:05]} 29... e5 {[%clk 0:00:47.3]} 30. dxe5 {[%clk
0:03:03.4]} 30... fxe5 {[%clk 0:00:46.6]} 31. Bxe5 {[%clk 0:03:01.8]} 1-0

[Event "Live Chess"]
[Site "Chess.com"]
[Date "2023.05.21"]
[Round "-"]
[White "DfNn"]
[Black "Missedidea"]
[Result "0-1"]
[WhiteElo "1544"]
[BlackElo "1776"]
[TimeControl "300"]
[EndTime "8:21:33 PDT"]
[Termination "Missedidea won by resignation"]

1. e4 {[%clk 0:04:58.9]} 1... c5 {[%clk 0:04:57.8]} 2. f4 {[%clk 0:04:58.1]}
2... g6 {[%clk 0:04:55.8]} 3. Nf3 {[%clk 0:04:56.9]} 3... Bg7 {[%clk 0:04:54.9]}
4. c3 {[%clk 0:04:55.5]} 4... e6 {[%clk 0:04:50.8]} 5. Be2 {[%clk 0:04:54.3]}
5... Ne7 {[%clk 0:04:49.1]} 6. d3 {[%clk 0:04:53.3]} 6... O-O {[%clk 0:04:47]}
7. Na3 {[%clk 0:04:52.2]} 7... d5 {[%clk 0:04:38.6]} 8. e5 {[%clk 0:04:50.5]}
8... a6 {[%clk 0:04:36.6]} 9. Nc2 {[%clk 0:04:46.4]} 9... Nbc6 {[%clk
0:04:28.2]} 10. Be3 {[%clk 0:04:39.9]} 10... b6 {[%clk 0:04:26.2]} 11. Qd2
{[%clk 0:04:37.3]} 11... Nf5 {[%clk 0:04:24.4]} 12. Bf2 {[%clk 0:04:35.1]} 12...
h5 {[%clk 0:04:21]} 13. Ng5 {[%clk 0:04:30.5]} 13... Qe7 {[%clk 0:04:11.9]} 14.
g4 {[%clk 0:04:28.5]} 14... hxg4 {[%clk 0:04:08.2]} 15. Bxg4 {[%clk 0:04:27.4]}
15... Bh6 {[%clk 0:03:56.4]} 16. h4 {[%clk 0:04:20.9]} 16... f6 {[%clk
0:03:43.4]} 17. exf6 {[%clk 0:04:17.6]} 17... Qxf6 {[%clk 0:03:39.4]} 18. O-O-O
{[%clk 0:04:14.8]} 18... d4 {[%clk 0:03:26.2]} 19. c4 {[%clk 0:04:09.3]} 19...
e5 {[%clk 0:03:11.9]} 20. Rde1 {[%clk 0:03:56.2]} 20... Bb7 {[%clk 0:02:57.9]}
21. Rh2 {[%clk 0:03:49.2]} 21... Rae8 {[%clk 0:02:53.3]} 22. Bxf5 {[%clk
0:03:26.6]} 22... Qxf5 {[%clk 0:02:45.7]} 23. fxe5 {[%clk 0:03:22.8]} 23... Rxe5
{[%clk 0:02:28.9]} 24. Rxe5 {[%clk 0:03:16.6]} 24... Nxe5 {[%clk 0:02:27]} 25.
Kb1 {[%clk 0:03:06]} 25... Nf3 {[%clk 0:02:19.8]} 26. Nxf3 {[%clk 0:02:37.5]}
26... Bxd2 {[%clk 0:02:16.8]} 27. Nxd2 {[%clk 0:02:37.4]} 27... Qf4 {[%clk
0:02:10.7]} 28. Nf1 {[%clk 0:02:25.2]} 28... Qxh2 {[%clk 0:02:01.6]} 29. Nxh2
{[%clk 0:02:22.3]} 29... Rxf2 {[%clk 0:02:00.1]} 30. h5 {[%clk 0:01:49.6]} 30...
Rxh2 {[%clk 0:01:56.1]} 0-1

[Event "Live Chess"]
[Site "Chess.com"]
[Date "2023.05.21"]
[Round "-"]
[White "McSlash1"]
[Black "Conradical12"]
[Result "1-0"]
[WhiteElo "1985"]
[BlackElo "1519"]
[TimeControl "300"]
[EndTime "8:21:49 PDT"]
[Termination "McSlash1 won by resignation"]

1. e4 {[%clk 0:04:59.2]} 1... e5 {[%clk 0:04:58.9]} 2. Nf3 {[%clk 0:04:57.4]}
2... Nc6 {[%clk 0:04:58.3]} 3. Bb5 {[%clk 0:04:56]} 3... Nf6 {[%clk 0:04:57.7]}
4. O-O {[%clk 0:04:54.9]} 4... Bc5 {[%clk 0:04:56.2]} 5. Re1 {[%clk 0:04:54.1]}
5... Ng4 {[%clk 0:04:55]} 6. d4 {[%clk 0:04:53.5]} 6... Bb6 {[%clk 0:04:53.2]}
7. Ng5 {[%clk 0:04:48.6]} 7... d6 {[%clk 0:04:50]} 8. d5 {[%clk 0:04:45.8]} 8...
a6 {[%clk 0:04:46.4]} 9. dxc6 {[%clk 0:04:44.3]} 9... axb5 {[%clk 0:04:45.2]}
10. cxb7 {[%clk 0:04:43.5]} 10... Bxb7 {[%clk 0:04:43.6]} 11. Qxg4 {[%clk
0:04:40.3]} 11... O-O {[%clk 0:04:39.5]} 12. Nc3 {[%clk 0:04:37.3]} 12... f5
{[%clk 0:04:38.1]} 13. exf5 {[%clk 0:04:35.1]} 13... h5 {[%clk 0:04:32]} 14. Qg3
{[%clk 0:04:33.3]} 14... Rxf5 {[%clk 0:04:28.1]} 15. Be3 {[%clk 0:04:21.6]}
15... Bxe3 {[%clk 0:04:25.1]} 16. Rxe3 {[%clk 0:04:21.5]} 16... Rxg5 {[%clk
0:04:21]} 17. Qh3 {[%clk 0:04:07.6]} 17... Rxg2+ {[%clk 0:04:17.5]} 18. Kf1
{[%clk 0:04:03.1]} 18... Qg5 {[%clk 0:04:09]} 19. Rg3 {[%clk 0:03:58.8]} 19...
Rxg3 {[%clk 0:04:03.5]} 20. hxg3 {[%clk 0:03:58.7]} 20... Rf8 {[%clk 0:03:57.6]}
21. Ne2 {[%clk 0:03:48]} 21... Qe3 {[%clk 0:03:48]} 22. Qh2 {[%clk 0:03:40]}
22... Bd5 {[%clk 0:03:35.4]} 23. b3 {[%clk 0:03:38.2]} 23... Be4 {[%clk
0:03:31]} 24. Re1 {[%clk 0:03:34]} 24... Bxc2 {[%clk 0:03:27.2]} 25. Nf4 {[%clk
0:03:29.7]} 25... Bd3+ {[%clk 0:03:24.3]} 26. Nxd3 {[%clk 0:03:28.3]} 26...
Qxd3+ {[%clk 0:03:23.4]} 27. Kg1 {[%clk 0:03:27.4]} 27... Qd2 {[%clk 0:03:17.4]}
28. Rf1 {[%clk 0:03:24.7]} 28... Qxa2 {[%clk 0:03:15.2]} 29. Qxh5 {[%clk
0:03:23.7]} 29... Qxb3 {[%clk 0:03:13.1]} 30. Kg2 {[%clk 0:03:14.9]} 30... Qd5+
{[%clk 0:03:11.4]} 31. Kg1 {[%clk 0:03:13.4]} 31... b4 {[%clk 0:03:09.3]} 32.
Rd1 {[%clk 0:03:11.4]} 32... Qc5 {[%clk 0:03:03]} 33. Rf1 {[%clk 0:03:06.2]}
33... b3 {[%clk 0:03:00.7]} 34. g4 {[%clk 0:03:05.5]} 34... b2 {[%clk
0:02:58.7]} 35. Qg6 {[%clk 0:02:56.4]} 35... Rxf2 {[%clk 0:02:50.4]} 36. Rxf2
{[%clk 0:02:26.5]} 36... b1=Q+ {[%clk 0:02:43.9]} 37. Qxb1 {[%clk 0:02:24.4]}
37... Qd4 {[%clk 0:02:39.4]} 38. Qg6 {[%clk 0:02:14.3]} 38... Qd1+ {[%clk
0:02:36.4]} 39. Kg2 {[%clk 0:02:12.5]} 39... Qd5+ {[%clk 0:02:35]} 40. Kg3
{[%clk 0:02:10.7]} 40... Qb3+ {[%clk 0:02:30.9]} 41. Rf3 {[%clk 0:02:09.1]}
41... Qd1 {[%clk 0:02:28.5]} 42. Qe6+ {[%clk 0:01:56.6]} 42... Kh7 {[%clk
0:02:22.8]} 43. Qf5+ {[%clk 0:01:54.2]} 43... Kg8 {[%clk 0:02:13.3]} 44. Qc8+
{[%clk 0:01:45.2]} 44... Kh7 {[%clk 0:02:10.6]} 45. Qf5+ {[%clk 0:01:41.2]}
45... Kg8 {[%clk 0:02:07.4]} 46. Qf7+ {[%clk 0:01:41.1]} 46... Kh7 {[%clk
0:02:06.1]} 47. Qh5+ {[%clk 0:01:41]} 47... Kg8 {[%clk 0:02:03.9]} 48. Qh2
{[%clk 0:01:40.6]} 48... Qe1+ {[%clk 0:01:56.4]} 49. Qf2 {[%clk 0:01:39.4]}
49... Qxf2+ {[%clk 0:01:55.1]} 50. Rxf2 {[%clk 0:01:39.3]} 50... g6 {[%clk
0:01:49.6]} 51. Rc2 {[%clk 0:01:37.5]} 51... c5 {[%clk 0:01:43.8]} 52. Rd2
{[%clk 0:01:36.6]} 52... Kf7 {[%clk 0:01:38.4]} 53. Rxd6 {[%clk 0:01:36.5]}
53... c4 {[%clk 0:01:31.3]} 54. Rc6 {[%clk 0:01:35.6]} 54... g5 {[%clk
0:01:29.4]} 55. Rxc4 {[%clk 0:01:34.3]} 55... Ke6 {[%clk 0:01:28.6]} 56. Kf3
{[%clk 0:01:33.9]} 56... Kd5 {[%clk 0:01:27.6]} 57. Ra4 {[%clk 0:01:33.3]} 57...
Kc5 {[%clk 0:01:25.8]} 58. Ke4 {[%clk 0:01:32]} 58... Kd6 {[%clk 0:01:24.4]} 59.
Ra5 {[%clk 0:01:31.2]} 59... Ke6 {[%clk 0:01:23.4]} 60. Rxe5+ {[%clk 0:01:31.1]}
60... Kf6 {[%clk 0:01:22.9]} 61. Rd5 {[%clk 0:01:29]} 1-0

[Event "Live Chess"]
[Site "Chess.com"]
[Date "2023.05.21"]
[Round "-"]
[White "Dhaydon19"]
[Black "WilliamofOrange16th"]
[Result "1-0"]
[WhiteElo "2689"]
[BlackElo "1849"]
[TimeControl "300"]
[EndTime "8:21:49 PDT"]
[Termination "Dhaydon19 won by checkmate"]

1. d4 {[%clk 0:04:59]} 1... d5 {[%clk 0:04:58.4]} 2. Nf3 {[%clk 0:04:56.6]} 2...
Nf6 {[%clk 0:04:56.6]} 3. g3 {[%clk 0:04:56.2]} 3... c6 {[%clk 0:04:55.2]} 4.
Bg2 {[%clk 0:04:55.8]} 4... Bf5 {[%clk 0:04:51]} 5. O-O {[%clk 0:04:55.4]} 5...
e6 {[%clk 0:04:50.3]} 6. c3 {[%clk 0:04:54.9]} 6... Bd6 {[%clk 0:04:48.8]} 7.
Nbd2 {[%clk 0:04:54.5]} 7... h6 {[%clk 0:04:47.9]} 8. Nh4 {[%clk 0:04:53.8]}
8... Bh7 {[%clk 0:04:46.6]} 9. Re1 {[%clk 0:04:53.4]} 9... O-O {[%clk
0:04:45.5]} 10. e4 {[%clk 0:04:52.4]} 10... dxe4 {[%clk 0:04:45.4]} 11. Nxe4
{[%clk 0:04:51.8]} 11... Nxe4 {[%clk 0:04:45]} 12. Bxe4 {[%clk 0:04:51.5]} 12...
Bxe4 {[%clk 0:04:40.8]} 13. Rxe4 {[%clk 0:04:50]} 13... Nd7 {[%clk 0:04:39.4]}
14. Rg4 {[%clk 0:04:44.9]} 14... Kh8 {[%clk 0:04:35.6]} 15. Bxh6 {[%clk
0:04:38.7]} 15... gxh6 {[%clk 0:04:34.1]} 16. Qd2 {[%clk 0:04:37.5]} 16... Kh7
{[%clk 0:04:30.7]} 17. Qd3+ {[%clk 0:04:33]} 17... f5 {[%clk 0:04:29.9]} 18. Re1
{[%clk 0:04:25]} 18... Nf6 {[%clk 0:04:25.5]} 19. Rg6 {[%clk 0:04:17]} 19... Qe8
{[%clk 0:04:08.4]} 20. Qe2 {[%clk 0:04:13.9]} 20... Ne4 {[%clk 0:04:03.9]} 21.
Qh5 {[%clk 0:04:11.3]} 21... Rf6 {[%clk 0:04:00.2]} 22. Qxh6# {[%clk 0:04:09.8]}
1-0

[Event "Live Chess"]
[Site "Chess.com"]
[Date "2023.05.21"]
[Round "-"]
[White "ramses-IIG"]
[Black "JoshMcK"]
[Result "0-1"]
[WhiteElo "873"]
[BlackElo "1573"]
[TimeControl "300"]
[EndTime "8:22:13 PDT"]
[Termination "JoshMcK won by resignation"]

1. e4 {[%clk 0:04:58.3]} 1... c6 {[%clk 0:04:56.7]} 2. Nf3 {[%clk 0:04:58.2]}
2... d5 {[%clk 0:04:56.2]} 3. Bc4 {[%clk 0:04:58.1]} 3... dxc4 {[%clk
0:04:54.9]} 4. h3 {[%clk 0:04:55.4]} 4... g6 {[%clk 0:04:47.8]} 5. h4 {[%clk
0:04:55.3]} 5... Bg7 {[%clk 0:04:46.9]} 6. h5 {[%clk 0:04:55.2]} 6... Bg4 {[%clk
0:04:41.4]} 7. h6 {[%clk 0:04:55.1]} 7... Bxf3 {[%clk 0:04:38.2]} 8. g3 {[%clk
0:04:55]} 8... Bxh6 {[%clk 0:04:25.4]} 9. Qxf3 {[%clk 0:04:51.9]} 9... Nd7
{[%clk 0:04:19.1]} 10. Rxh6 {[%clk 0:04:49.5]} 10... Nxh6 {[%clk 0:04:16.7]} 11.
Qf4 {[%clk 0:04:48.5]} 11... Ng8 {[%clk 0:04:08.9]} 12. Qxf7+ {[%clk 0:04:48.1]}
12... Kxf7 {[%clk 0:04:07]} 0-1

[Event "Live Chess"]
[Site "Chess.com"]
[Date "2023.05.21"]
[Round "-"]
[White "Ian-Morley"]
[Black "NotHarryV"]
[Result "0-1"]
[WhiteElo "1110"]
[BlackElo "1508"]
[TimeControl "300"]
[EndTime "8:22:26 PDT"]
[Termination "NotHarryV won by resignation"]

1. e4 {[%clk 0:04:58.3]} 1... c6 {[%clk 0:04:58.3]} 2. Nf3 {[%clk 0:04:58]} 2...
d5 {[%clk 0:04:57.6]} 3. exd5 {[%clk 0:04:57]} 3... cxd5 {[%clk 0:04:57.5]} 4.
d4 {[%clk 0:04:56.5]} 4... Nc6 {[%clk 0:04:53.9]} 5. Nc3 {[%clk 0:04:56.1]} 5...
Bg4 {[%clk 0:04:53.1]} 6. h3 {[%clk 0:04:54.9]} 6... Bxf3 {[%clk 0:04:50.6]} 7.
Qxf3 {[%clk 0:04:54]} 7... Nf6 {[%clk 0:04:48.7]} 8. Bg5 {[%clk 0:04:51.9]} 8...
e6 {[%clk 0:04:47.3]} 9. Bxf6 {[%clk 0:04:51]} 9... Qxf6 {[%clk 0:04:46.3]} 10.
Qxf6 {[%clk 0:04:49.5]} 10... gxf6 {[%clk 0:04:46.2]} 11. Bb5 {[%clk 0:04:48.6]}
11... f5 {[%clk 0:04:34.6]} 12. Bxc6+ {[%clk 0:04:48.2]} 12... bxc6 {[%clk
0:04:33.8]} 13. O-O-O {[%clk 0:04:45.1]} 13... a5 {[%clk 0:04:14.6]} 14. g4
{[%clk 0:04:43.3]} 14... fxg4 {[%clk 0:04:11]} 15. hxg4 {[%clk 0:04:41.9]} 15...
a4 {[%clk 0:04:07.7]} 16. f3 {[%clk 0:04:40.9]} 16... Bd6 {[%clk 0:03:49.9]} 17.
Ne2 {[%clk 0:04:35.7]} 17... Kd7 {[%clk 0:03:47]} 18. f4 {[%clk 0:04:33.9]}
18... Rhb8 {[%clk 0:03:45.2]} 19. b3 {[%clk 0:04:32.1]} 19... axb3 {[%clk
0:03:40.9]} 20. cxb3 {[%clk 0:04:31]} 20... c5 {[%clk 0:03:37.5]} 21. Rd2 {[%clk
0:04:26.2]} 21... cxd4 {[%clk 0:03:32.8]} 22. Rc2 {[%clk 0:04:21.6]} 22... d3
{[%clk 0:03:27.7]} 23. Rd2 {[%clk 0:04:16.3]} 23... dxe2 {[%clk 0:03:22]} 24.
Rxe2 {[%clk 0:04:15.5]} 24... Bxf4+ {[%clk 0:03:17.4]} 25. Kd1 {[%clk
0:04:13.8]} 25... Rc8 {[%clk 0:03:14.2]} 26. Ke1 {[%clk 0:04:12.1]} 26... Rc1+
{[%clk 0:03:12.4]} 0-1

[Event "Live Chess"]
[Site "Chess.com"]
[Date "2023.05.21"]
[Round "-"]
[White "FierceFighter2000"]
[Black "PiotrD11"]
[Result "1-0"]
[WhiteElo "2045"]
[BlackElo "1377"]
[TimeControl "300"]
[EndTime "8:22:37 PDT"]
[Termination "FierceFighter2000 won by checkmate"]

1. e4 {[%clk 0:04:59.4]} 1... e5 {[%clk 0:04:57.4]} 2. Nf3 {[%clk 0:04:58.5]}
2... Nc6 {[%clk 0:04:55.7]} 3. Bc4 {[%clk 0:04:57.7]} 3... d6 {[%clk 0:04:54.6]}
4. d4 {[%clk 0:04:56.3]} 4... exd4 {[%clk 0:04:52.5]} 5. c3 {[%clk 0:04:55.7]}
5... dxc3 {[%clk 0:04:48.5]} 6. Nxc3 {[%clk 0:04:55.6]} 6... Nf6 {[%clk
0:04:46.4]} 7. Qa4 {[%clk 0:04:48.1]} 7... Bd7 {[%clk 0:04:39.9]} 8. Qb3 {[%clk
0:04:46.5]} 8... Be7 {[%clk 0:04:35.4]} 9. Bxf7+ {[%clk 0:04:45.2]} 9... Kf8
{[%clk 0:04:34.1]} 10. Bc4 {[%clk 0:04:44.6]} 10... Ne5 {[%clk 0:04:32.1]} 11.
Nxe5 {[%clk 0:04:41.6]} 11... dxe5 {[%clk 0:04:30.5]} 12. O-O {[%clk 0:04:40.8]}
12... a5 {[%clk 0:04:20.8]} 13. a4 {[%clk 0:04:35]} 13... c6 {[%clk 0:04:16.9]}
14. Rd1 {[%clk 0:04:31.9]} 14... Qc7 {[%clk 0:04:15.6]} 15. Bg5 {[%clk
0:04:23.3]} 15... h6 {[%clk 0:04:12]} 16. Bh4 {[%clk 0:04:09.3]} 16... Bb4
{[%clk 0:03:48]} 17. Bxf6 {[%clk 0:03:48]} 17... gxf6 {[%clk 0:03:46.5]} 18. Ne2
{[%clk 0:03:46.4]} 18... Rh7 {[%clk 0:03:32.3]} 19. Qf3 {[%clk 0:03:32.1]} 19...
Be7 {[%clk 0:03:20.3]} 20. Ng3 {[%clk 0:03:26.3]} 20... Rg7 {[%clk 0:03:18.9]}
21. Nh5 {[%clk 0:03:23.8]} 21... Rg6 {[%clk 0:03:07.2]} 22. h3 {[%clk 0:02:52]}
22... Qb6 {[%clk 0:02:39]} 23. Rxd7 {[%clk 0:02:47.3]} 23... Qxb2 {[%clk
0:02:37.2]} 24. Rad1 {[%clk 0:02:40.4]} 24... Qb4 {[%clk 0:02:21.7]} 25. Qf5
{[%clk 0:02:14.2]} 25... Rg5 {[%clk 0:02:07.2]} 26. Qe6 {[%clk 0:02:12.8]} 26...
Re8 {[%clk 0:01:41.3]} 27. Qf7# {[%clk 0:02:11.4]} 1-0